bitfinex/quotes_BTCUSD_20241229
["timestamp","ask_amount","ask_price","bid_price","bid_amount"]
[1735444644750,0.90097882,95402.0,95401.0,0.1001708]
[1735444645576,0.44621382,95402.0,95401.0,0.1001708]
[1735444650651,0.63553823,95402.0,95401.0,0.1001708]
[1735444652700,0.44621382,95402.0,95401.0,0.1001708]
[1735444657664,0.54140229,95402.0,95401.0,0.1001708]
[1735444660757,0.44621382,95402.0,95401.0,0.1001708]
[1735444661239,0.63554294,95402.0,95401.0,0.1001708]
[1735444662254,0.63599582,95402.0,95401.0,0.1001708]
[1735444662453,0.62365582,95402.0,95401.0,0.1001708]
[1735444666907,0.62365582,95402.0,95401.0,0.0001708]
[1735444667117,0.72764214,95402.0,95401.0,0.1001708]
[1735444670085,0.62365582,95402.0,95401.0,0.1001708]
[1735444670666,0.62365582,95402.0,95401.0,0.0001708]
[1735444671450,0.62365582,95402.0,95401.0,0.1001708]
[1735444671674,0.62365582,95402.0,95401.0,0.0001708]
[1735444671876,0.62365582,95402.0,95401.0,0.1001708]
[1735444672082,0.65933691,95402.0,95401.0,0.0001708]
[1735444672881,0.05221491,95402.0,95401.0,0.0001708]
[1735444673087,1.44203691,95402.0,95401.0,0.0001708]
[1735444673727,1.22179991,95402.0,95401.0,0.0001708]
[1735444674433,1.21076991,95402.0,95401.0,0.0001708]
[1735444675655,1.40009903,95402.0,95401.0,0.0001708]
[1735444678167,1.53089903,95402.0,95401.0,0.0001708]
[1735444678498,1.51445061,95402.0,95401.0,0.0001708]
[1735444678909,1.47876952,95402.0,95401.0,0.0001708]
[1735444679889,1.57294191,95402.0,95401.0,0.0001708]
[1735444681352,1.2894404,95402.0,95401.0,0.0001708]
[1735444681555,1.30588979,95402.0,95401.0,0.0001708]
[1735444682704,1.2894404,95402.0,95401.0,0.0001708]
[1735444682904,1.39342672,95402.0,95401.0,0.0001708]
[1735444683461,2.85369972,95402.0,95401.0,0.0001708]
[1735444683656,0.23487172,95402.0,95401.0,0.0001708]
[1735444683886,2.60169972,95402.0,95401.0,0.0001708]
[1735444684051,2.4977134,95402.0,95401.0,0.0001708]
[1735444685070,2.29036783,95402.0,95401.0,0.0001708]
[1735444685277,0.00422,95404.0,95401.0,0.0001708]
[1735444685278,2.849422,95403.0,95401.0,0.0001708]
[1735444685480,3.087296,95402.0,95401.0,0.0001708]
[1735444685681,2.93928232,95402.0,95401.0,0.0001708]
[1735444686007,3.14492296,95402.0,95401.0,0.0001708]
[1735444686832,2.95573188,95402.0,95401.0,0.0001708]
[1735444687221,2.95773188,95402.0,95401.0,0.0001708]
[1735444687514,2.95782245,95402.0,95401.0,0.0001708]
[1735444688178,3.08872245,95402.0,95401.0,0.0001708]
[1735444689045,3.07227289,95402.0,95401.0,0.0001708]
[1735444689339,2.66035802,95402.0,95401.0,0.0001708]
[1735444689651,2.5563717,95402.0,95401.0,0.0001708]
[1735444691916,2.4130767,95402.0,95401.0,0.0001708]
[1735444692168,2.2998307,95402.0,95401.0,0.0001708]
[1735444692788,2.28338057,95402.0,95401.0,0.0001708]
[1735444693272,2.28346597,95402.0,95401.0,0.0001708]
[1735444693550,2.38745229,95402.0,95401.0,0.0001708]
[1735444693703,2.91155229,95402.0,95401.0,0.0001708]
[1735444694908,0.76116229,95402.0,95401.0,0.0001708]
[1735444695111,3.40505197,95402.0,95401.0,0.0001708]
[1735444695315,3.48304797,95402.0,95401.0,0.0001708]
[1735444695513,3.42674297,95402.0,95401.0,0.0001708]
[1735444695828,3.37684297,95402.0,95401.0,0.0001708]
[1735444696261,3.39329312,95402.0,95401.0,0.0001708]
[1735444696451,3.38250312,95402.0,95401.0,0.0001708]
[1735444696972,3.48648944,95402.0,95401.0,0.0001708]
[1735444699786,1.79013012,95402.0,95401.0,0.0001708]
[1735444699964,1.77629912,95402.0,95401.0,0.0001708]
[1735444702991,1.75984897,95402.0,95401.0,0.0001708]
[1735444706148,1.77629899,95402.0,95401.0,0.0001708]
[1735444714203,1.77429899,95402.0,95401.0,0.0001708]
[1735444714767,1.77629899,95402.0,95401.0,0.0001708]
[1735444722229,1.72101399,95402.0,95401.0,0.0001708]
[1735444724766,1.82500031,95402.0,95401.0,0.0001708]
[1735444727600,1.72101399,95402.0,95401.0,0.0001708]
[1735444732088,1.72201399,95402.0,95401.0,0.0001708]
[1735444732655,1.72001399,95402.0,95401.0,0.0001708]
[1735444733165,1.72201399,95402.0,95401.0,0.0001708]
[1735444733365,1.72101399,95402.0,95401.0,0.0001708]
[1735444733996,1.72301399,95402.0,95401.0,0.0001708]
[1735444735052,1.48161442,95402.0,95401.0,0.0001708]
[1735444738763,1.48169982,95402.0,95401.0,0.0001708]
[1735444741068,1.7183674,95402.0,95401.0,0.0001708]
[1735444742291,1.48169982,95402.0,95401.0,0.0001708]
[1735444743111,0.30341182,95402.0,95401.0,0.0001708]
[1735444743443,1.99974782,95402.0,95401.0,0.0001708]
[1735444743644,1.88300882,95402.0,95401.0,0.0001708]
[1735444744294,1.8665588,95402.0,95401.0,0.0001708]
[1735444744461,1.95391999,95402.0,95401.0,0.0001708]
[1735444744666,1.93229299,95402.0,95401.0,0.0001708]
[1735444747639,1.9487425,95402.0,95401.0,0.0001708]
[1735444747842,1.93229299,95402.0,95401.0,0.0001708]
[1735444747992,0.7922738,95402.0,95401.0,0.0001708]
[1735444748914,0.6866568,95402.0,95401.0,0.0001708]
[1735444749088,0.6886568,95402.0,95401.0,0.0001708]
[1735444749706,0.6866568,95402.0,95401.0,0.0001708]
[1735444750089,0.6886568,95402.0,95401.0,0.0001708]
[1735444751060,0.7051059,95402.0,95401.0,0.0001708]
[1735444751293,0.41797906,95402.0,95401.0,0.0001708]
[1735444752062,0.40152996,95402.0,95401.0,0.0001708]
[1735444753991,0.46577167,95402.0,95401.0,0.0001708]
[1735444755264,0.48222146,95402.0,95401.0,0.0001708]
[1735444756247,0.55792146,95402.0,95401.0,0.0001708]
[1735444756454,0.54147167,95402.0,95401.0,0.0001708]
[1735444756834,0.53947167,95402.0,95401.0,0.0001708]
[1735444757234,0.54347167,95402.0,95401.0,0.0011708]
[1735444757698,0.54147167,95402.0,95401.0,0.0011708]
[1735444757930,0.54547167,95402.0,95401.0,0.0011708]
[1735444758689,0.82938428,95402.0,95401.0,0.0011708]
[1735444759127,4.00008732,95402.0,95401.0,0.0011708]
[1735444759321,4.17353847,95402.0,95401.0,0.0011708]
[1735444759563,3.73262586,95402.0,95401.0,0.0011708]
[1735444761016,3.73271126,95402.0,95401.0,0.0011708]
[1735444761219,3.68581526,95402.0,95401.0,0.0011708]
[1735444762770,3.25243311,95402.0,95401.0,0.0011708]
[1735444763309,3.15457011,95402.0,95401.0,0.0011708]
[1735444763750,3.08884111,95402.0,95401.0,0.0011708]
[1735444766128,2.96213026,95402.0,95401.0,0.0011708]
[1735444766300,2.91926526,95402.0,95401.0,0.0011708]
[1735444766523,2.90732126,95402.0,95401.0,0.0011708]
[1735444769959,2.86642626,95402.0,95401.0,0.0011708]
[1735444771486,2.83438126,95402.0,95401.0,0.0011708]
[1735444773514,2.81793011,95402.0,95401.0,0.0011708]
[1735444776699,2.83438128,95402.0,95401.0,0.0011708]
[1735444776906,2.852575,95402.0,95401.0,0.0011708]
[1735444777107,2.83438128,95402.0,95401.0,0.0011708]
[1735444777239,2.65480328,95402.0,95401.0,0.0011708]
[1735444778085,2.54284957,95402.0,95401.0,0.0011708]
[1735444778321,2.43875257,95402.0,95401.0,0.0011708]
[1735444778513,1.95211457,95402.0,95401.0,0.0011708]
[1735444778915,1.80754857,95402.0,95401.0,0.0011708]
[1735444779122,1.76541157,95402.0,95401.0,0.0011708]
[1735444780048,1.86863495,95402.0,95401.0,0.0011708]
[1735444780252,1.70161395,95402.0,95401.0,0.0011708]
[1735444780454,1.86821295,95402.0,95401.0,0.0011708]
[1735444780658,1.73130795,95402.0,95401.0,0.0011708]
[1735444782972,1.83529427,95402.0,95401.0,0.0011708]
[1735444783871,1.73207089,95402.0,95401.0,0.0011708]
[1735444784922,1.62808457,95402.0,95401.0,0.0011708]
[1735444785135,1.15344657,95402.0,95401.0,0.0011708]
[1735444787673,1.43688201,95402.0,95401.0,0.0011708]
[1735444788773,1.15344657,95402.0,95401.0,0.0011708]
[1735444789280,1.25666995,95402.0,95401.0,0.0011708]
[1735444790692,1.08451491,95402.0,95401.0,0.0011708]
[1735444791065,1.10096561,95402.0,95401.0,0.0011708]
[1735444792076,0.99774223,95402.0,95401.0,0.0011708]
[1735444795112,0.99782763,95402.0,95401.0,0.0011708]
[1735444795884,0.99782763,95402.0,95388.0,0.07614457]
[1735444796081,1.929984,95401.0,95388.0,0.07614457]
[1735444796284,2.226672,95400.0,95388.0,0.07614457]
[1735444796530,2.232475,95399.0,95388.0,0.07614457]
[1735444796745,2.074543,95398.0,95388.0,0.07614457]
[1735444796955,2.503254,95397.0,95388.0,0.07614457]
[1735444797158,2.333961,95396.0,95388.0,0.07614457]
[1735444797428,2.421864,95395.0,95388.0,0.07614457]
[1735444797750,2.236466,95394.0,95388.0,0.07614457]
[1735444797883,2.145216,95393.0,95388.0,0.07614457]
[1735444798078,3.155807,95400.0,95388.0,0.07614457]
[1735444798282,2.642966,95399.0,95388.0,0.07614457]
[1735444798485,0.10522338,95401.0,95388.0,0.07614457]
[1735444798486,0.18915643,95390.0,95388.0,0.07614457]
[1735444798692,1.283449,95389.0,95388.0,0.07614457]
[1735444799199,1.083459,95389.0,95388.0,0.07614457]
[1735444799825,1.09990911,95389.0,95388.0,0.07614457]
[1735444800024,1.10090911,95389.0,95388.0,0.07614457]
[1735444802301,0.975851,95389.0,95388.0,0.07614457]
[1735444802436,0.954655,95389.0,95388.0,0.07614457]
[1735444805378,0.735799,95389.0,95388.0,0.07614457]
[1735444805579,0.650086,95389.0,95388.0,0.07614457]
[1735444806408,0.650086,95389.0,95388.0,0.07631537]
[1735444808558,0.650086,95389.0,95388.0,0.0001708]
[1735444809291,0.66653643,95389.0,95388.0,0.0001708]
[1735444809474,0.650086,95389.0,95388.0,0.0001708]
[1735444810152,0.002,95389.0,95388.0,0.0001708]
[1735444810705,1.62927301,95389.0,95388.0,0.0001708]
[1735444811070,2.12377,95392.0,95388.0,0.0001708]
[1735444811371,2.303586,95391.0,95388.0,0.0001708]
[1735444811507,2.54785415,95390.0,95388.0,0.08197708]
[1735444811718,1.829248,95389.0,95388.0,0.08197708]
[1735444811925,1.765524,95389.0,95388.0,0.08197708]
[1735444812123,1.585597,95389.0,95388.0,0.08197708]
[1735444812525,0.93911288,95389.0,95388.0,0.16077708]
[1735444812721,0.91204388,95389.0,95388.0,0.16077708]
[1735444812956,0.86821083,95389.0,95388.0,0.16077708]
[1735444813159,0.86921083,95389.0,95388.0,0.16077708]
[1735444813311,0.8700951,95389.0,95388.0,0.16077708]
[1735444814245,0.8545451,95389.0,95388.0,0.16077708]
[1735444814737,0.618009,95389.0,95388.0,0.16077708]
[1735444814938,0.61750862,95389.0,95388.0,0.16077708]
[1735444816225,0.63395879,95389.0,95388.0,0.16077708]
[1735444817993,0.6337846,95389.0,95388.0,0.16077708]
[1735444818887,0.63295568,95389.0,95388.0,0.16077708]
[1735444819270,0.63266457,95389.0,95388.0,0.16077708]
[1735444819921,0.63249038,95389.0,95388.0,0.16077708]
[1735444820269,0.63231619,95389.0,95388.0,0.16077708]
[1735444820977,0.63202508,95389.0,95388.0,0.16077708]
[1735444821181,0.8686687,95389.0,95388.0,0.16077708]
[1735444822013,0.63202508,95389.0,95388.0,0.16077708]
[1735444822943,0.74108617,95389.0,95388.0,0.16077708]
[1735444823243,0.90521917,95389.0,95388.0,0.16077708]
[1735444823422,0.89288517,95389.0,95388.0,0.16077708]
[1735444823817,0.89171719,95389.0,95388.0,0.16077708]
[1735444826374,0.32231119,95389.0,95388.0,0.16077708]
[1735444827322,0.30877419,95389.0,95388.0,0.16077708]
[1735444830978,0.30885959,95389.0,95388.0,0.16077708]
[1735444831184,0.12385759,95389.0,95388.0,0.16077708]
[1735444831707,0.1085754,95389.0,95388.0,0.16077708]
[1735444846251,0.14778201,95389.0,95388.0,0.16077708]
[1735444846422,0.14778201,95389.0,95388.0,0.08197708]
[1735444847229,0.14778201,95389.0,95388.0,0.0001708]
[1735444849386,0.43127272,95389.0,95388.0,0.0001708]
[1735444849732,0.32278272,95389.0,95388.0,0.0001708]
[1735444849974,3.71770972,95389.0,95388.0,0.0001708]
[1735444850424,3.35392272,95389.0,95388.0,0.0001708]
[1735444850627,3.07043201,95389.0,95388.0,0.0001708]
[1735444851871,3.38937121,95389.0,95388.0,0.0001708]
[1735444853946,3.07043201,95389.0,95388.0,0.0001708]
[1735444862200,3.0312254,95389.0,95388.0,0.0001708]
[1735444862474,1.7960754,95389.0,95388.0,0.0001708]
[1735444862806,1.7970754,95389.0,95388.0,0.0001708]
[1735444863006,1.8000754,95389.0,95388.0,0.0001708]
[1735444863211,1.7990754,95389.0,95388.0,0.0001708]
[1735444863405,1.7970754,95389.0,95388.0,0.0001708]
[1735444863909,1.7990754,95389.0,95388.0,0.0001708]
[1735444865743,1.90306172,95389.0,95388.0,0.0001708]
[1735444868775,1.90106172,95389.0,95388.0,0.0001708]
[1735444869153,1.90306172,95389.0,95388.0,0.0001708]
[1735444869358,1.98576172,95389.0,95388.0,0.0001708]
[1735444869581,1.98476172,95389.0,95388.0,0.0001708]
[1735444870373,1.98576172,95389.0,95388.0,0.0001708]
[1735444875921,0.18977172,95389.0,95388.0,0.0001708]
[1735444876099,0.0857854,95389.0,95388.0,0.0001708]
[1735444876654,3.7040504,95389.0,95388.0,0.0001708]
[1735444876857,3.7092204,95389.0,95388.0,0.0001708]
[1735444877074,3.4350884,95389.0,95388.0,0.0001708]
[1735444877275,3.4076874,95389.0,95388.0,0.0001708]
[1735444877641,3.51167372,95389.0,95388.0,0.0001708]
[1735444882302,3.52986744,95389.0,95388.0,0.0001708]
[1735444882512,3.63309082,95389.0,95388.0,0.0001708]
[1735444882688,3.52986744,95389.0,95388.0,0.0001708]
[1735444883289,3.52686744,95389.0,95388.0,0.0001708]
[1735444883533,3.52986744,95389.0,95388.0,0.0011708]
[1735444884547,3.53486744,95389.0,95388.0,0.0011708]
[1735444887790,3.63809082,95389.0,95388.0,0.0011708]
[1735444892558,3.53486744,95389.0,95388.0,0.0011708]
[1735444894401,3.54583399,95389.0,95388.0,0.0011708]
[1735444896391,0.14114659,95389.0,95388.0,0.0011708]
[1735444896609,3.84651659,95389.0,95388.0,0.0011708]
[1735444897707,3.50280859,95389.0,95388.0,0.0011708]
[1735444898088,2.41976627,95389.0,95388.0,0.0011708]
[1735444898263,2.32791455,95389.0,95388.0,0.0011708]
[1735444898467,2.316948,95389.0,95388.0,0.0011708]
[1735444898670,2.33514172,95389.0,95388.0,0.0011708]
[1735444899288,2.33214172,95389.0,95388.0,0.0001708]
[1735444899489,2.43612804,95389.0,95388.0,0.0011708]
[1735444899691,2.44012804,95389.0,95388.0,0.0011708]
[1735444900292,2.43512804,95389.0,95388.0,0.0011708]
[1735444900494,2.44012804,95389.0,95388.0,0.0011708]
[1735444900873,2.41539953,95389.0,95388.0,0.0011708]
[1735444901680,2.41548493,95389.0,95388.0,0.0011708]
[1735444903134,2.51870831,95389.0,95388.0,0.0011708]
[1735444906885,2.91548493,95389.0,95388.0,0.0011708]
[1735444907683,3.23450057,95389.0,95388.0,0.0011708]
[1735444908796,2.91548493,95389.0,95388.0,0.0011708]
[1735444909190,3.91370944,95389.0,95388.0,0.0011708]
[1735444909475,3.78332444,95389.0,95388.0,0.0011708]
[1735444909704,3.71706644,95389.0,95388.0,0.0011708]
[1735444910314,4.24123644,95389.0,95388.0,0.0011708]
[1735444912656,4.34445982,95389.0,95388.0,0.0011708]
[1735444915602,0.01819372,95382.0,95374.0,0.07291952]
[1735444915749,3.680642,95381.0,95374.0,0.07291952]
[1735444915948,0.10398632,95380.0,95374.0,0.07291952]
[1735444916173,3.680642,95379.0,95374.0,0.07291952]
[1735444917218,3.680642,95379.0,95374.0,0.07391952]
[1735444917426,0.31916605,95378.0,95374.0,0.07391952]
[1735444917626,3.680642,95377.0,95374.0,0.07391952]
[1735444917842,0.09992924,95376.0,95374.0,0.07391952]
[1735444917997,3.149777,95376.0,95374.0,0.07391952]
[1735444918205,2.950199,95375.0,95374.0,0.07391952]
[1735444918374,3.012659,95377.0,95374.0,0.07391952]
[1735444918785,3.33182505,95377.0,95374.0,0.07291952]
[1735444919018,3.049595,95376.0,95374.0,0.07291952]
[1735444919276,0.10398632,95375.0,95374.0,0.07391952]
[1735444919389,3.05673932,95375.0,95374.0,0.07291952]
[1735444919794,3.05673932,95375.0,95374.0,0.07391952]
[1735444920046,3.05673932,95375.0,95374.0,0.07291952]
[1735444920415,3.05673932,95375.0,95374.0,0.07391952]
[1735444920605,3.05973932,95375.0,95374.0,0.07391952]
[1735444921607,3.05973932,95375.0,95374.0,0.07291952]
[1735444921810,3.06473932,95375.0,95374.0,0.07291952]
[1735444922019,3.1679627,95375.0,95374.0,0.07291952]
[1735444923242,3.48712875,95375.0,95374.0,0.07291952]
[1735444924926,3.48712875,95375.0,95374.0,0.07309032]
[1735444925138,3.48721415,95375.0,95374.0,0.07309032]
[1735444925341,3.1680481,95375.0,95374.0,0.07309032]
[1735444926152,2.9233811,95375.0,95374.0,0.07309032]
[1735444926359,2.82015772,95375.0,95374.0,0.07309032]
[1735444926919,0.11207172,95375.0,95374.0,0.07309032]
[1735444927091,3.36829472,95375.0,95374.0,0.07309032]
[1735444927231,3.24504772,95375.0,95374.0,0.07309032]
[1735444927445,2.90067472,95375.0,95374.0,0.07309032]
[1735444929259,2.90067472,95375.0,95374.0,0.06543291]
[1735444934127,2.90067472,95375.0,95374.0,7.06543291]
[1735444937800,2.90067472,95375.0,95374.0,7.0001708]
[1735444948069,3.40067472,95375.0,95374.0,7.0001708]
[1735444948272,0.61207172,95375.0,95374.0,7.0001708]
[1735444948709,4.41413082,95375.0,95374.0,7.0001708]
[1735444948867,4.31090744,95375.0,95374.0,7.0001708]
[1735444949433,4.30790744,95375.0,95374.0,7.0001708]
[1735444950161,4.31290744,95375.0,95374.0,7.0001708]
[1735444950551,4.11922144,95375.0,95374.0,7.0001708]
[1735444950757,4.08763544,95375.0,95374.0,7.0001708]
[1735444950960,3.97426444,95375.0,95374.0,7.0011708]
[1735444951786,3.98026444,95375.0,95374.0,6.99828268]
[1735444952132,3.98026444,95375.0,95374.0,6.99506313]
[1735444953617,3.85250744,95375.0,95374.0,6.99506313]
[1735444954165,3.39329382,95375.0,95374.0,6.99506313]
[1735444956048,3.38729382,95375.0,95374.0,6.99506313]
[1735444956418,3.29007044,95375.0,95374.0,6.99506313]
[1735444956605,3.39329382,95375.0,95374.0,6.99506313]
[1735444956806,3.37829382,95375.0,95374.0,6.99406313]
[1735444957231,3.38429382,95375.0,95374.0,6.99406313]
[1735444957394,3.39329382,95375.0,95374.0,6.99506313]
[1735444958249,3.38429382,95375.0,95374.0,6.99406313]
[1735444958702,3.39329382,95375.0,95374.0,6.99506313]
[1735444961597,3.39329382,95375.0,95374.0,6.99523393]
[1735444964035,3.12643326,95375.0,95374.0,6.99523393]
[1735444965152,3.30095126,95375.0,95374.0,6.99523393]
[1735444969221,3.40417464,95375.0,95374.0,6.99523393]
[1735444973072,3.40426004,95375.0,95374.0,6.99523393]
[1735444973454,3.30103666,95375.0,95374.0,6.99523393]
[1735444974160,3.28694366,95375.0,95374.0,6.99523393]
[1735444974368,3.25624566,95375.0,95374.0,6.99523393]
[1735444974485,2.41047162,95375.0,95374.0,6.99523393]
[1735444974697,2.41047162,95375.0,95374.0,7.12373393]
[1735444974920,2.39950507,95375.0,95374.0,7.12373393]
[1735444975327,2.33911107,95375.0,95374.0,7.12373393]
[1735444975528,2.17338107,95375.0,95374.0,7.12373393]
[1735444975942,2.17638107,95375.0,95374.0,7.12373393]
[1735444976356,1.6763814,95375.0,95374.0,7.12373393]
[1735444976551,1.70427678,95375.0,95374.0,7.12373393]
[1735444976761,1.5920534,95375.0,95374.0,7.12273393]
[1735444977184,1.91517829,95375.0,95374.0,7.12373393]
[1735444977348,1.90817829,95375.0,95374.0,7.12273393]
[1735444977706,1.91717829,95375.0,95374.0,7.12373393]
[1735444978011,1.91117829,95375.0,95374.0,7.12273393]
[1735444978177,1.5890534,95375.0,95374.0,7.12273393]
[1735444978389,1.5950534,95375.0,95374.0,7.12273393]
[1735444979205,0.0060854,95375.0,95374.0,7.12273393]
[1735444979345,3.3230054,95375.0,95374.0,7.12273393]
[1735444979547,3.0687764,95375.0,95374.0,7.12273393]
[1735444980200,3.17276272,95375.0,95374.0,7.12273393]
[1735444980948,2.94173872,95375.0,95374.0,7.12273393]
[1735444981856,3.0449621,95375.0,95374.0,7.12273393]
[1735444982675,3.36408699,95375.0,95374.0,7.12273393]
[1735444982796,3.27905733,95375.0,95374.0,7.07613393]
[1735444983446,2.95993244,95375.0,95374.0,7.07613393]
[1735444983648,2.95393244,95375.0,95374.0,7.07613393]
[1735444984190,2.95393244,95375.0,95374.0,7.07713393]
[1735444984191,2.96293244,95375.0,95374.0,7.07713393]
[1735444984539,2.96893244,95375.0,95374.0,7.07713393]
[1735444986629,2.96893244,95375.0,95374.0,6.99523393]
[1735444987954,3.07215582,95375.0,95374.0,6.99523393]
[1735444988241,3.0539621,95375.0,95374.0,6.99523393]
[1735444993108,2.95073872,95375.0,95374.0,6.99523393]
[1735445002472,2.67539651,95375.0,95374.0,6.99523393]
[1735445005453,0.015,95375.0,95374.0,6.99523393]
[1735445005665,3.524372,95375.0,95374.0,6.99523393]
[1735445007727,2.7473114,95375.0,95374.0,6.99523393]
[1735445007957,2.6402404,95375.0,95374.0,6.99523393]
[1735445008424,2.6228244,95375.0,95374.0,6.99523393]
[1735445008673,2.66246378,95375.0,95374.0,6.99523393]
[1735445008930,2.65015578,95375.0,95374.0,7.07253393]
[1735445009660,2.52961178,95375.0,95374.0,7.07253393]
[1735445010885,2.40771578,95375.0,95374.0,6.99523393]
[1735445013638,2.40771578,95375.0,95374.0,7.07253393]
[1735445013859,2.3044924,95375.0,95374.0,7.07253393]
[1735445014744,2.31545895,95375.0,95374.0,7.07253393]
[1735445017441,2.31545895,95375.0,95374.0,7.06933585]
[1735445019299,2.3044924,95375.0,95374.0,6.99203585]
[1735445020158,2.2984924,95375.0,95374.0,6.99203585]
[1735445020361,2.2954924,95375.0,95374.0,6.99103585]
[1735445020594,2.2954924,95375.0,95374.0,6.99203585]
[1735445020595,2.3044924,95375.0,95374.0,6.99203585]
[1735445020766,2.3044924,95375.0,95374.0,6.99103585]
[1735445020966,2.29796815,95375.0,95374.0,6.98951585]
[1735445021187,0.024,95375.0,95374.0,6.99051585]
[1735445021364,3.281112,95375.0,95374.0,6.99051585]
[1735445021570,3.532934,95375.0,95374.0,6.99051585]
[1735445021972,3.514934,95375.0,95374.0,6.98951585]
[1735445022225,3.305087,95375.0,95374.0,6.98951585]
[1735445022424,3.299087,95375.0,95374.0,6.98951585]
[1735445022641,3.497136,95376.0,95374.0,6.98951585]
[1735445022845,0.005,95375.0,95374.0,6.98951585]
[1735445022988,3.284624,95375.0,95374.0,6.98951585]
[1735445023197,3.293624,95375.0,95374.0,6.99051585]
[1735445023553,3.293624,95375.0,95374.0,6.98951585]
[1735445023753,3.288624,95375.0,95374.0,6.98951585]
[1735445024020,3.288624,95375.0,95374.0,6.99051585]
[1735445024228,3.173447,95375.0,95374.0,6.98951585]
[1735445024437,3.052363,95375.0,95374.0,6.99051585]
[1735445024983,2.982675,95375.0,95374.0,6.99051585]
[1735445025840,2.987675,95375.0,95374.0,6.99051585]
[1735445026555,2.770223,95375.0,95374.0,6.99051585]
[1735445029406,2.50438979,95375.0,95374.0,6.99051585]
[1735445029755,2.505002,95376.0,95374.0,6.99051585]
[1735445029910,2.531912,95375.0,95374.0,6.99051585]
[1735445030798,2.5319974,95375.0,95374.0,6.98951585]
[1735445031347,2.3798804,95375.0,95374.0,6.98951585]
[1735445031551,2.3798804,95375.0,95374.0,6.99051585]
[1735445031790,2.4219374,95375.0,95374.0,6.99051585]
[1735445032136,2.3893704,95375.0,95374.0,6.99051585]
[1735445032805,2.3893704,95375.0,95374.0,6.98951585]
[1735445032981,2.3893704,95375.0,95374.0,6.99051585]
[1735445033840,2.70907064,95375.0,95374.0,6.99051585]
[1735445034763,2.73823091,95375.0,95374.0,6.99051585]
[1735445035601,2.73823091,95375.0,95374.0,6.98580669]
[1735445035959,2.41853067,95375.0,95374.0,6.98580669]
[1735445038546,2.04264367,95375.0,95374.0,6.98580669]
[1735445039077,2.12767333,95375.0,95374.0,6.98580669]
[1735445039262,2.12767333,95375.0,95374.0,7.06900669]
[1735445039695,2.14586705,95375.0,95374.0,7.06900669]
[1735445039937,2.04264367,95375.0,95374.0,7.06900669]
[1735445040143,2.02444995,95375.0,95374.0,7.06900669]
[1735445040348,2.04264367,95375.0,95374.0,7.06900669]
[1735445040551,2.14257291,95375.0,95374.0,7.06900669]
[1735445040752,2.04264367,95375.0,95374.0,7.06900669]
[1735445043776,2.02444995,95375.0,95374.0,7.06900669]
[1735445043976,1.81027995,95375.0,95374.0,7.06900669]
[1735445044183,1.71489895,95375.0,95374.0,7.06900669]
[1735445044875,1.71489895,95375.0,95374.0,7.06596876]
[1735445045089,1.81812233,95375.0,95374.0,7.06596876]
[1735445046033,1.78821233,95375.0,95374.0,7.06596876]
[1735445046475,1.72532333,95375.0,95374.0,7.06596876]
[1735445046677,1.70095133,95375.0,95374.0,7.06596876]
[1735445046906,1.59772795,95375.0,95374.0,7.06596876]
[1735445047601,1.61592167,95375.0,95374.0,7.06246987]
[1735445051916,1.59772795,95375.0,95374.0,7.06246987]
[1735445052259,1.58104895,95375.0,95374.0,7.06246987]
[1735445057055,1.68427233,95375.0,95374.0,7.06246987]
[1735445057902,1.58104895,95375.0,95374.0,7.06246987]
[1735445058406,1.48029695,95375.0,95374.0,7.06246987]
[1735445062908,1.48029695,95375.0,95374.0,6.97926987]
[1735445063128,1.58352033,95375.0,95374.0,6.97926987]
[1735445068085,1.48029695,95375.0,95374.0,6.97926987]
[1735445073604,1.28990906,95375.0,95374.0,6.97926987]
[1735445074112,1.39313244,95375.0,95374.0,6.97926987]
[1735445076185,1.39321784,95375.0,95374.0,6.97926987]
[1735445077273,1.39321784,95375.0,95374.0,6.96984344]
[1735445083238,1.28999446,95375.0,95374.0,6.96984344]
[1735445084309,1.28999446,95375.0,95374.0,6.96884344]
[1735445084648,1.29299446,95375.0,95374.0,6.96984344]
[1735445085128,1.29599446,95375.0,95374.0,6.96984344]
[1735445085627,1.29999446,95375.0,95374.0,6.96984344]
[1735445085917,1.29599446,95375.0,95374.0,6.96984344]
[1735445086288,1.29899446,95375.0,95374.0,6.96984344]
[1735445091395,1.29899446,95375.0,95374.0,7.05224344]
[1735445093391,1.40221784,95375.0,95374.0,7.05224344]
[1735445098333,1.29899446,95375.0,95374.0,7.05224344]
[1735445103829,1.29899446,95375.0,95374.0,6.96984344]
[1735445104326,1.40221784,95375.0,95374.0,6.96984344]
[1735445108875,1.40221784,95375.0,95374.0,7.09434344]
[1735445109079,0.0090854,95375.0,95374.0,7.09434344]
[1735445109914,2.3057664,95375.0,95374.0,7.09434344]
[1735445110320,2.2870664,95375.0,95374.0,7.09434344]
[1735445110549,2.1192604,95375.0,95374.0,7.09434344]
[1735445110830,1.8976834,95375.0,95374.0,7.09334344]
[1735445111031,1.9056834,95375.0,95374.0,7.09434344]
[1735445114124,2.00890678,95375.0,95374.0,7.09434344]
[1735445125666,2.02536264,95375.0,95374.0,7.09434344]
[1735445126193,2.00890678,95375.0,95374.0,7.09434344]
[1735445129383,2.02536228,95375.0,95374.0,7.09434344]
[1735445131491,2.03938269,95375.0,95374.0,7.09434344]
[1735445132779,2.03938269,95375.0,95374.0,7.09014039]
[1735445133984,1.7918337,95375.0,95374.0,7.09014039]
[1735445134115,0.14569929,95375.0,95374.0,7.09014039]
[1735445134313,0.13167888,95375.0,95374.0,7.09014039]
[1735445134554,0.14570522,95375.0,95374.0,7.09014039]
[1735445134792,2.42395822,95375.0,95374.0,7.09014039]
[1735445134929,0.14579062,95375.0,95374.0,7.09014039]
[1735445135345,2.55645412,95375.0,95374.0,7.09014039]
[1735445135536,2.66100512,95375.0,95374.0,7.09014039]
[1735445135910,2.45050574,95375.0,95374.0,7.09014039]
[1735445138597,2.4669616,95375.0,95374.0,7.09014039]
[1735445139797,2.4669616,95375.0,95374.0,7.04344039]
[1735445140018,2.57018498,95375.0,95374.0,6.96564039]
[1735445140223,2.4669616,95375.0,95374.0,6.96564039]
[1735445140600,2.57018498,95375.0,95374.0,6.96564039]
[1735445141003,2.57011159,95375.0,95374.0,6.96564039]
[1735445142023,2.49556959,95375.0,95374.0,6.96564039]
[1735445142620,2.24645059,95375.0,95374.0,6.96564039]
[1735445142827,2.24252398,95375.0,95374.0,6.96564039]
[1735445143409,2.23452398,95375.0,95374.0,6.96464039]
[1735445143607,2.23952398,95375.0,95374.0,6.96564039]
[1735445143805,2.24852398,95375.0,95374.0,6.96564039]
[1735445144148,2.24352398,95375.0,95374.0,6.96464039]
[1735445144325,2.25252398,95375.0,95374.0,6.96564039]
[1735445145405,2.24106812,95375.0,95374.0,6.96564039]
[1735445145563,2.22306812,95375.0,95374.0,6.96464039]
[1735445145771,2.22706812,95375.0,95374.0,6.96464039]
[1735445146098,2.23106812,95375.0,95374.0,6.96464039]
[1735445148294,3.07889412,95375.0,95374.0,6.96464039]
[1735445148708,3.09534998,95375.0,95374.0,6.96464039]
[1735445148934,2.9921266,95375.0,95374.0,6.96464039]
[1735445149558,2.9745206,95375.0,95374.0,6.96464039]